[Event "New York Spring IM-D 2022"]
[Site "New York"]
[Date "2022.04.19"]
[Round "9.1"]
[White "Dans, Dwight"]
[Black "Wang, Eigen"]
[Result "0-1"]
[ECO "C03"]
[WhiteElo "1979"]
[BlackElo "2242"]
[Annotator "TA"]
[PlyCount "56"]
[EventDate "2022.04.14"]
[EventType "tourn"]
[EventCountry "USA"]
[SourceTitle "playchess.com"]
[Source "ChessBase"]
[SourceQuality "1"]
[TimeControl "5400+30"]

{[%evp 10,56,12,-4,5,9,31,31,42,36,73,60,75,79,79,66,158,108,106,76,85,0,0,0,0,12,0,-30,-20,-41,-38,-43,-33,-86,-108,-86,-81,-105,-77,-91,-47,-56,-66,-491,-490,-484,-481,-451,-347]} 1. e4 {[%emt 0:00:53]} e6 {[%emt 0:00:18]} 2. d4 {[%emt 0:00:16]} d5 {[%emt 0:00:04]} 3. Nd2 {[%emt 0:00:16]} Be7 {[%emt 0:00:27]} 4. e5 {[%emt 0:01:11]} c5 {[%emt 0:00:09]} 5. c3 {[%emt 0:00:04]} Nc6 {[%emt 0:00:16]} 6. Ndf3 {[%emt 0:02:59]} cxd4 {[%emt 0:05:34] C03: French Tarrasch: Unusual Black 3rd moves.} 7. cxd4 {[%emt 0:00:03]} Qb6 8. Bd3 {[%emt 0:01:25]} Bb4+ {[%emt 0:03:06] White is slightly better.} (8... Nxd4 $2 9. Nxd4 (9. Qa4+ Nc6 $17) 9... Bd7 10. Nb3 $18) 9. Kf1 {[%emt 0:00:26]} f6 {[%emt 0:04:05]} (9... Nxd4 $2 10. Nxd4 Bd7 11. Be3 $18) 10. a3 {[%emt 0:10:54]} Be7 {[%emt 0:00:27]} 11. b4 {[%emt 0:01:13]} Bd7 {[%emt 0:04:18]} 12. Ne2 {[%emt 0:00:23] [#]} O-O-O $146 {[%emt 0:07:33]} (12... fxe5 $14 13. dxe5 Nh6) ({Predecessor:} 12... Nh6 13. Bxh6 gxh6 14. Qd2 O-O-O 15. exf6 Bxf6 16. Rc1 a6 17. a4 Kb8 18. b5 Nxd4 19. Nexd4 {1-0 (39) Poetz,F (2378)-Testor,S (2281) Austria 2018}) 13. Be3 {[%emt 0:07:58]} ({Better is} 13. exf6 Nxf6 14. Bf4) 13... Kb8 $16 {[%emt 0:03:04]} 14. g3 {[%emt 0:11:02]} Nh6 {[%emt 0:05:52]} 15. Bxh6 {[%emt 0:11:39]} (15. b5 $16 Na5 16. Bf4) 15... gxh6 $11 {[%emt 0:00:10]} 16. b5 {[%emt 0:04:41]} Na5 {[%emt 0:04:25]} 17. Kg2 {[%emt 0:02:42]} Rhf8 {[%emt 0:02:41]} 18. a4 {[%emt 0:03:52]} Be8 $1 {[%emt 0:03:28]} 19. Nf4 {[%emt 0:01:26] Prevents Bh5.} fxe5 {[%emt 0:07:32]} 20. Nxe5 {[%emt 0:02:29]} Qxd4 {[%emt 0:04:15]} 21. Qe2 {[%emt 0:01:06]} (21. Re1 $1 $15 Bb4 22. Bxh7 (22. Nf3 Qf6 $15) 22... Rxf4 23. gxf4 Qxf4 24. Qf3 Qxf3+ 25. Nxf3 Bxe1 26. Rxe1) 21... Rxf4 $17 {[%emt 0:07:23]} 22. gxf4 {[%emt 0:00:10]} Qxf4 {[%emt 0:00:14]} 23. Rhe1 {[%emt 0:07:52]} (23. Qe3 $2 Qxe3 24. fxe3 Bf6 $19) 23... Bb4 {[%emt 0:08:53] And now ...Nb3 would win.} ({Much worse is} 23... Bd6 $6 24. Qe3 Qf6 25. Rab1 $11) 24. Qe3 {[%emt 0:01:21]} Qf8 {[%emt 0:03:21]} 25. Re2 {[%emt 0:00:24]} Bh5 $36 {[%emt 0:06:20][%mdl 2048] Hoping for ...Nb3. White is under pressure. Really sharp!} 26. f3 $2 {[%emt 0:01:08][%mdl 8192] [#]} ({White should play} 26. Rc2 $1 $15) 26... Bc5 $19 {[%emt 0:03:24] This bishop pair is nice. Black is clearly winning.} 27. Nd7+ {[%emt 0:07:49]} Rxd7 {[%emt 0:00:23]} 28. Qe5+ {[%emt 0:00:03]} Rc7 {[%emt 0:02:03] Weighted Error Value: White=0.42/Black=0.11 (very precise)} 0-1

[Event "New York Spring IM-D 2022"]
[Site "New York"]
[Date "2022.04.19"]
[Round "9.2"]
[White "Jacobson, Aaron"]
[Black "Cervantes Landeiro, Thalia"]
[Result "1-0"]
[ECO "D26"]
[WhiteElo "2263"]
[BlackElo "2206"]
[Annotator "TA"]
[PlyCount "63"]
[EventDate "2022.04.14"]
[EventType "tourn"]
[EventCountry "USA"]
[SourceTitle "playchess.com"]
[Source "ChessBase"]
[SourceQuality "1"]
[TimeControl "5400+30"]

{[%evp 11,63,27,24,14,6,13,0,14,15,29,25,4,13,22,25,0,34,18,44,37,106,91,111,82,216,212,279,280,287,268,269,184,214,196,246,217,274,277,252,254,249,262,248,233,250,211,649,628,3846,3404,29966,6049,5312,3631]} 1. d4 {[%emt 0:00:14]} d5 {[%emt 0:01:28]} 2. c4 {[%emt 0:00:08]} dxc4 {[%emt 0:00:08]} 3. Nf3 {[%emt 0:00:25]} Nf6 {[%emt 0:00:07]} 4. e3 {[%emt 0:00:03]} e6 {[%emt 0:00:08]} 5. Bxc4 {[%emt 0:00:33]} c5 {[%emt 0:00:10]} 6. O-O {[%emt 0:00:09]} Nc6 {[%emt 0:00:16]} 7. Nc3 {[%emt 0:00:34] D26: Queen's Gambit Accepted: 4 e3 e6 5 Bxc5 c5 sidelines.} a6 {[%emt 0:00:26] The main line 7...a6 scores better than 7...cxd4.} 8. d5 {[%emt 0:00:15]} Na5 {[%emt 0:09:38]} 9. b3 {[%emt 0:00:26] The position is equal.} b5 {[%emt 0:04:10]} 10. Bd3 {[%emt 0:00:05]} (10. dxe6 Qxd1 11. exf7+ Ke7 12. Rxd1 bxc4 $15) 10... Nxd5 {[%emt 0:07:49]} 11. Nxd5 {[%emt 0:00:08]} exd5 {[%emt 0:02:40]} 12. Bb2 $36 {[%emt 0:14:07][%mdl 2048] Black is under pressure.} Bg4 {[%emt 0:10:37]} (12... Rb8 {is more complex.} 13. Ne5 c4 14. Qh5 Qc7) 13. h3 {[%emt 1:19:53]} Be6 {[%emt 0:00:53]} 14. Qc2 {[%emt 0:00:00] [#]} Nc6 $146 {[%emt 0:07:14]} ({Predecessor:} 14... Rc8 15. Rfd1 c4 16. bxc4 Nxc4 17. Bxc4 Rxc4 18. Qd3 f6 19. a4 Bc5 20. axb5 axb5 {½-½ (59) Bai,J (2593)-Xu,X (2564) Hangzhou 2022}) 15. Bxh7 {[%emt 0:00:00]} Qd7 {[%emt 0:07:13] [#]} (15... Rc8 $14) 16. Ng5 $1 $16 {[%emt 0:00:00]} O-O-O {[%emt 0:03:21]} 17. f4 {[%emt 0:00:00] And now f5 would win. &Bianco is more active.} Be7 {[%emt 0:14:24] This costs Black the game.} (17... Nb4 $16 {keeps fighting.} 18. Qb1 Qe7) 18. Bxg7 $18 {[%emt 0:00:00]} Rxh7 {[%emt 0:04:59]} 19. Qxh7 {[%emt 0:00:00]} (19. Nxh7 $2 Bf5 20. Qf2 Bxh7 $19) 19... f6 {[%emt 0:07:50]} 20. Nxe6 {[%emt 0:00:00]} Qxe6 {[%emt 0:00:09]} 21. Rae1 {[%emt 0:00:00]} Qf7 {[%emt 0:01:18]} 22. e4 {[%emt 0:00:00] Strongly threatening e5.} Nd4 {[%emt 0:04:17] [#]} (22... Kb7 {is a better defense.}) 23. e5 $1 {[%emt 0:00:00] Hoping for f5.} Rg8 {[%emt 0:01:25]} 24. exf6 {[%emt 0:00:00]} Bxf6 {[%emt 0:00:10] [#]} 25. Qxg8+ {[%emt 0:00:00][%mdl 512]} Qxg8 {[%emt 0:00:08]} 26. Bxf6 {[%emt 0:00:00]} Nf5 {[%emt 0:03:34]} 27. Re5 {[%emt 0:00:00]} Qg6 {[%emt 0:00:45]} 28. Bg5 {[%emt 0:00:00]} ({Inferior is} 28. Rxd5 Ne3 29. Rxc5+ Kb7 $17) 28... Kb7 $2 {[%emt 0:02:52]} (28... c4 29. bxc4 (29. Rxd5 Ng3 $16) 29... dxc4) 29. h4 {[%emt 0:00:00]} Nd4 {[%emt 0:03:36]} 30. f5 {[%emt 0:00:00][%cal Bf4f5,Bf5f6][%mdl 32]} Qd6 {[%emt 0:00:52]} 31. Re7+ {[%emt 0:00:00]} Kc6 {[%emt 0:01:33]} 32. f6 {[%emt 0:00:00] Weighted Error Value: White=0.06 (flawless) /Black=0.60} 1-0

[Event "New York Spring IM-D 2022"]
[Site "New York"]
[Date "2022.04.19"]
[Round "9.3"]
[White "Paragua, Mark"]
[Black "Espinosa, Pedro"]
[Result "1-0"]
[ECO "B53"]
[WhiteElo "2456"]
[BlackElo "2012"]
[Annotator "TA"]
[PlyCount "117"]
[EventDate "2022.04.14"]
[EventType "tourn"]
[EventCountry "USA"]
[SourceTitle "playchess.com"]
[Source "ChessBase"]
[SourceQuality "1"]
[TimeControl "5400+30"]

{[%evp 21,117,0,0,0,0,0,8,-9,0,-16,14,-41,-36,-31,0,0,7,0,20,12,32,18,8,0,0,0,14,14,14,14,40,25,33,5,28,12,17,17,17,12,12,56,52,64,148,123,117,137,215,216,215,210,195,179,229,77,70,67,70,70,77,77,147,85,1008,889,4145,4017,1718,3471,2746,2475,7675,7675,29972,29974,29978,29979,29977,29976,29980,29981,29980,29981,29981,29982,29982,29983,29985,29986,29986,29987,29987,29988,29988,29989,29989,29990]} 1. e4 {[%emt 0:00:04]} c5 {[%emt 0:00:05]} 2. Nf3 {[%emt 0:00:05]} d6 {[%emt 0:00:04]} 3. d4 {[%emt 0:00:14]} cxd4 {[%emt 0:00:05]} 4. Qxd4 {[%emt 0:00:10]} Nf6 {[%emt 0:00:08]} 5. Nc3 {[%emt 0:00:23]} Nc6 {[%emt 0:00:28]} 6. Bb5 {[%emt 0:00:08]} Bd7 {[%emt 0:00:26]} 7. Bxc6 {[%emt 0:00:08]} Bxc6 {[%emt 0:00:38]} 8. Bg5 {[%emt 0:00:07]} e6 {[%emt 0:00:34]} 9. O-O-O {[%emt 0:00:57]} Be7 {[%emt 0:00:39]} 10. Qd3 $1 {[%emt 0:00:10][%mdl 4] is more profitable than 10.Rhe1 at the moment.} Qa5 {[%emt 0:00:47]} 11. h4 {[%emt 0:01:14]} h6 {[%emt 0:00:42]} 12. Bxf6 {[%emt 0:02:30] B53: Sicilian: 2...d6: Lines with Qxd4.} Bxf6 {[%emt 0:00:51]} 13. Nd4 {[%emt 0:00:05]} Rc8 {[%emt 0:01:58] [#]} (13... O-O {seems wilder.} 14. g4 d5 15. g5 dxe4 16. Nxc6 bxc6 17. Nxe4 Rad8) 14. g4 $146 {[%emt 0:01:16] The position is equal.} ({Predecessor:} 14. f4 h5 15. g3 O-O 16. Rhe1 Rfd8 17. Kb1 Be8 18. Qf3 b5 19. e5 dxe5 20. fxe5 {1-0 (35) Nakamura,H (2736)-Klekowski,M (2515) Chess.com INT 2020}) 14... Qb6 {[%emt 0:01:31]} 15. Qe3 {[%emt 0:04:23]} Bd7 {[%emt 0:02:45]} 16. f4 {[%emt 0:28:30]} ({Better is} 16. Kb1 $11) 16... e5 $15 {[%emt 0:04:15]} 17. fxe5 {[%emt 0:00:07]} dxe5 {[%emt 0:00:35]} (17... Bxe5 $5 {[%cal Rd7g4]} 18. Rhg1 (18. Nd5 Qc5 $15) 18... Be6 $15) 18. Nf5 {[%emt 0:01:00] And now Qxb6 would win.} Qxe3+ {[%emt 0:00:20]} 19. Nxe3 {[%emt 0:00:03]} Be7 {[%emt 0:03:05]} 20. Nf5 {[%emt 0:02:48]} Bxf5 {[%emt 0:02:55]} 21. exf5 {[%emt 0:04:54]} Rc4 {[%emt 0:03:07]} 22. Rhe1 {[%emt 0:00:06]} O-O {[%emt 0:03:55]} 23. Rxe5 {[%emt 0:08:04]} Bxh4 {[%emt 0:00:42]} 24. Ne4 {[%emt 0:00:26]} Rfc8 {[%emt 0:04:22]} 25. c3 {[%emt 0:04:27]} R4c7 {[%emt 0:01:42]} 26. a4 {[%emt 0:03:15]} Kf8 {[%emt 0:00:47]} 27. Red5 {[%emt 0:06:37]} Be7 {[%emt 0:01:48]} 28. b3 {[%emt 0:02:42]} Bf6 {[%emt 0:05:50]} 29. Nxf6 {[%emt 0:08:25]} Rxc3+ {[%emt 0:01:10]} 30. Kb2 {[%emt 0:00:07]} Rc2+ {[%emt 0:03:11]} 31. Kb1 {[%emt 0:00:01] Threatens to win with Rd8+.} gxf6 {[%emt 0:00:09]} 32. Rd8+ $1 {[%emt 0:00:03]} Rxd8 {[%emt 0:04:30]} (32... Kg7 $14) 33. Rxd8+ $14 {[%emt 0:00:06][%mdl 4096] Endgame KR-KR} Ke7 {[%emt 0:00:03]} 34. Ra8 $1 {[%emt 0:00:22]} Rc7 {[%emt 0:01:32]} (34... Rc3 $16 {was called for.}) 35. Rxa7 $18 {[%emt 0:00:24]} Kd6 {[%emt 0:01:27] [#]} 36. a5 $1 {[%emt 0:00:40]} Re7 {[%emt 0:08:53]} 37. Kc2 {[%emt 0:02:56] Hoping for b4.} Re5 {[%emt 0:02:35]} (37... Rd7 {keeps fighting.} 38. Kc3 Kc6) 38. Rxb7 $2 {[%emt 0:01:22]} (38. Kd3 $18 {and White stays clearly on top.}) 38... Rxa5 $16 {[%emt 0:00:05]} 39. Rxf7 {[%emt 0:00:07]} Ke5 {[%emt 0:01:13]} 40. b4 {[%emt 0:04:20]} Ra2+ {[%emt 0:02:05]} 41. Kb3 {[%emt 0:00:02] &Bianco is more active.} Rg2 {[%emt 0:00:16]} (41... Ra1 $142) 42. Rg7 {[%emt 0:00:07]} ({White should play} 42. Re7+ Kd5 43. Rf7) 42... h5 $2 {[%emt 0:02:36][%mdl 8192] This move loses the game for Black.} (42... Rg1 $16) 43. Re7+ $18 {[%emt 0:00:09]} Kf4 {[%emt 0:01:43]} 44. gxh5 {[%emt 0:00:06]} Rh2 {[%emt 0:01:10]} 45. Rh7 {[%emt 0:00:07]} Kxf5 {[%emt 0:00:06]} 46. b5 {[%emt 0:00:05][%cal Bb4b5,Bb5b6,Bb6b7][%mdl 32] Intending b6 and mate.} Kg5 {[%emt 0:01:20]} 47. b6 {[%emt 0:00:15] b7 would kill now.} Re2 {[%emt 0:00:15]} 48. b7 {[%emt 0:01:17] White mates.} ({Weaker is} 48. Rg7+ Kxh5 49. Rh7+ Kg5 $16) 48... Re8 {[%emt 0:00:02]} 49. Kc4 {[%emt 0:00:31]} f5 {[%emt 0:00:42]} 50. Kd5 {[%emt 0:00:05]} Rf8 {[%emt 0:00:59]} 51. Rc7 {[%emt 0:00:16]} Rb8 {[%emt 0:00:08]} 52. Kc6 {[%emt 0:05:58]} Kxh5 {[%emt 0:00:51] [#]} 53. Rc8 $1 {[%emt 0:00:06]} Rxb7 {[%emt 0:00:03]} 54. Kxb7 {[%emt 0:00:04] KR-KP} f4 {[%emt 0:00:59]} 55. Kc6 {[%emt 0:00:04]} f3 {[%emt 0:00:41]} 56. Kd5 {[%emt 0:00:04]} Kg4 {[%emt 0:00:57]} 57. Ke4 {[%emt 0:00:07]} f2 {[%emt 0:00:10]} 58. Rf8 {[%emt 0:00:11]} Kg3 {[%emt 0:00:07]} 59. Ke3 {[%emt 0:00:05] Weighted Error Value: White=0.09 (flawless) /Black=0.26 (precise)} 1-0